[Event "Mistrovství Čech mládeže 2023 - HD14"]
[Site "Harrachov, Czech Republic"]
[Date "2023.10.24"]
[Round "5.4"]
[White "Chon, Jeremy"]
[Black "Topenčík, Bruno"]
[Result "0-1"]
[TimeControl "90m + 30s"]
[WhiteElo "1538"]
[BlackElo "1832"]

1. Nf3 {[%clk 01:30:59]} {[%emt 00:42:06]} Nf6 {[%clk 01:30:53]} {[%emt
00:00:07]} 2. d4 {[%clk 01:31:29]} d5 {[%clk 01:31:17]} {[%emt 00:00:07]} 3.
Bf4 {[%clk 01:31:55]} {[%emt 00:00:03]} c5 {[%clk 01:31:42]} {[%emt 00:00:05]}
4. e3 {[%clk 01:32:22]} {[%emt 00:00:03]} Nc6 {[%clk 01:32:08]} {[%emt
00:00:04]} 5. c3 {[%clk 01:32:48]} {[%emt 00:00:05]} Qb6 {[%clk 01:32:31]}
{[%emt 00:00:06]} 6. Qb3 {[%clk 01:32:54]} {[%emt 00:00:24]} c4 {[%clk
01:32:54]} {[%emt 00:00:06]} 7. Qxb6 {[%clk 01:33:20]} {[%emt 00:00:04]} axb6
{[%clk 01:33:20]} {[%emt 00:00:05]} 8. Na3 {[%clk 01:33:31]} {[%emt 00:00:19]}
Bg4 {[%clk 01:12:49]} {[%emt 00:21:00]} 9. Nd2 {[%clk 01:24:03]} {[%emt
00:09:58]} Bf5 {[%clk 01:02:42]} {[%emt 00:10:37]} 10. f3 {[%clk 01:12:25]}
{[%emt 00:12:08]} e6 {[%clk 01:00:18]} {[%emt 00:02:54]} 11. Nb5 {[%clk
01:02:07]} {[%emt 00:10:48]} Ra5 {[%clk 00:59:02]} {[%emt 00:01:45]} 12. Nd6+
{[%clk 00:59:04]} {[%emt 00:03:34]} Bxd6 {[%clk 00:59:18]} {[%emt 00:00:15]} 13.
Bxd6 {[%clk 00:59:32]} {[%emt 00:00:02]} Kd7 {[%clk 00:59:17]} {[%emt
00:00:30]} 14. Be5 {[%clk 00:55:21]} {[%emt 00:04:42]} Rha8 {[%clk 00:56:17]}
{[%emt 00:03:29]} 15. Bxf6 {[%clk 00:50:54]} {[%emt 00:04:58]} gxf6 {[%clk
00:56:30]} {[%emt 00:00:17]} 16. a3 {[%clk 00:49:26]} {[%emt 00:01:58]} b5
{[%clk 00:55:55]} {[%emt 00:01:04]} 17. Rc1 {[%clk 00:47:03]} {[%emt 00:02:54]}
Rg8 {[%clk 00:54:10]} {[%emt 00:02:12]} 18. Kf2 {[%clk 00:40:53]} {[%emt
00:06:43]} Raa8 {[%clk 00:53:43]} {[%emt 00:00:57]} 19. Be2 {[%clk 00:34:55]}
{[%emt 00:06:28]} Bg6 {[%clk 00:52:58]} {[%emt 00:01:14]} 20. f4 {[%clk
00:24:43]} {[%emt 00:10:43]} Be4 {[%clk 00:47:54]} {[%emt 00:05:34]} 21. Bf3
{[%clk 00:23:43]} {[%emt 00:01:30]} Bxf3 {[%clk 00:48:05]} {[%emt 00:00:18]} 22.
Nxf3 {[%clk 00:23:33]} {[%emt 00:00:40]} Rae8 {[%clk 00:47:06]} {[%emt
00:01:29]} 23. Rcd1 {[%clk 00:22:55]} {[%emt 00:01:08]} Kd6 {[%clk 00:46:38]}
{[%emt 00:00:58]} 24. Rhe1 {[%clk 00:21:25]} {[%emt 00:02:01]} f5 {[%clk
00:45:55]} {[%emt 00:01:12]} 25. Ne5 {[%clk 00:19:11]} {[%emt 00:02:44]} f6
{[%clk 00:44:57]} {[%emt 00:01:27]} 26. Nxc6 {[%clk 00:19:11]} {[%emt
00:00:30]} bxc6 {[%clk 00:44:46]} {[%emt 00:00:41]} 27. Rd2 {[%clk 00:17:46]}
{[%emt 00:01:56]} e5 {[%clk 00:42:19]} {[%emt 00:02:57]} 28. g3 {[%clk
00:12:03]} {[%emt 00:06:14]} exd4 {[%clk 00:40:39]} {[%emt 00:02:10]} 29. exd4
{[%clk 00:11:47]} {[%emt 00:00:46]} Re4 {[%clk 00:40:57]} {[%emt 00:00:11]} 30.
Rde2 {[%clk 00:08:32]} {[%emt 00:03:45]} Rge8 {[%clk 00:40:00]} {[%emt
00:01:27]} 31. Kf3 {[%clk 00:07:22]} {[%emt 00:01:41]} Kc7 {[%clk 00:34:17]}
{[%emt 00:06:13]} 32. h3 {[%clk 00:06:16]} {[%emt 00:01:36]} h5 {[%clk
00:34:02]} {[%emt 00:00:45]} 33. Kf2 {[%clk 00:04:49]} {[%emt 00:01:58]} Kb6
{[%clk 00:32:53]} {[%emt 00:01:38]} 34. Rxe4 {[%clk 00:03:34]} {[%emt
00:01:46]} dxe4 {[%clk 00:29:08]} {[%emt 00:04:13]} 35. g4 {[%clk 00:02:37]}
{[%emt 00:01:29]} fxg4 {[%clk 00:25:36]} {[%emt 00:04:02]} 36. hxg4 {[%clk
00:03:01]} {[%emt 00:00:07]} hxg4 {[%clk 00:26:01]} {[%emt 00:00:05]} 37. f5
{[%clk 00:03:18]} {[%emt 00:00:13]} e3+ {[%clk 00:21:11]} {[%emt 00:05:19]} 38.
Rxe3 {[%clk 00:03:06]} {[%emt 00:00:42]} Rxe3 {[%clk 00:20:52]} {[%emt
00:00:49]} 39. Kxe3 {[%clk 00:03:35]} c5 {[%clk 00:21:11]} {[%emt 00:00:12]} 40.
Kf4 {[%clk 00:03:31]} {[%emt 00:00:34]} cxd4 {[%clk 00:21:34]} {[%emt
00:00:07]} 41. cxd4 {[%clk 00:04:00]} {[%emt 00:00:01]} Kc6 {[%clk 00:21:53]}
{[%emt 00:00:11]} 42. Kxg4 {[%clk 00:04:20]} {[%emt 00:00:11]} Kd5 {[%clk
00:22:17]} {[%emt 00:00:05]} 0-1

[Event "Mistrovství Čech mládeže 2023 - HD14"]
[Site "Harrachov, Czech Republic"]
[Date "2023.10.24"]
[Round "5.5"]
[White "Slívová, Linda"]
[Black "Švadlenka, Dominik"]
[Result "0-1"]
[TimeControl "90m + 30s"]
[WhiteElo "1624"]
[BlackElo "1710"]

1. d4 {[%clk 01:30:57]} {[%emt 00:00:01]} d5 {[%clk 01:30:58]} {[%emt
00:00:03]} 2. Nf3 {[%clk 01:31:20]} {[%emt 00:00:08]} Nf6 {[%clk 01:31:23]}
{[%emt 00:00:05]} 3. Bf4 {[%clk 01:31:43]} {[%emt 00:00:07]} c5 {[%clk
01:31:46]} {[%emt 00:00:08]} 4. e3 {[%clk 01:32:01]} {[%emt 00:00:12]} Nc6
{[%clk 01:32:12]} {[%emt 00:00:04]} 5. Nbd2 {[%clk 01:31:03]} {[%emt 00:01:28]}
Bg4 {[%clk 01:32:15]} {[%emt 00:00:27]} 6. c3 {[%clk 01:27:10]} {[%emt
00:04:23]} e6 {[%clk 01:32:24]} {[%emt 00:00:21]} 7. Bb5 {[%clk 01:20:55]}
{[%emt 00:06:45]} Qc8 {[%clk 01:31:05]} {[%emt 00:01:48]} 8. Qa4 {[%clk
01:19:08]} {[%emt 00:02:16]} Nd7 {[%clk 01:29:45]} {[%emt 00:01:50]} 9. Ne5
{[%clk 01:12:32]} {[%emt 00:07:06]} Ndxe5 {[%clk 01:29:48]} {[%emt 00:00:27]}
10. Bxe5 {[%clk 01:12:15]} {[%emt 00:00:47]} c4 {[%clk 01:27:03]} {[%emt
00:03:15]} 11. e4 {[%emt 00:06:16]} a6 {[%clk 01:25:07]} {[%emt 00:02:15]} 12.
Bxc6+ {[%clk 01:07:02]} {[%emt 00:00:08]} Qxc6 {[%clk 01:25:31]} {[%emt
00:00:07]} 13. Qxc6+ {[%clk 01:01:34]} {[%emt 00:05:58]} bxc6 {[%clk 01:25:55]}
{[%emt 00:00:05]} 14. f3 {[%clk 01:00:25]} {[%emt 00:01:39]} Bh5 {[%clk
01:26:12]} {[%emt 00:00:13]} 15. Kf2 {[%clk 00:59:52]} {[%emt 00:01:03]} f6
{[%clk 01:24:39]} {[%emt 00:02:03]} 16. Bg3 {[%clk 00:59:17]} {[%emt 00:01:05]}
c5 {[%clk 01:22:52]} {[%emt 00:02:17]} 17. Rhe1 {[%clk 00:49:31]} {[%emt
00:10:15]} Kd7 {[%clk 01:21:25]} {[%emt 00:01:58]} 18. dxc5 {[%clk 00:45:56]}
{[%emt 00:04:06]} Bxc5+ {[%clk 01:21:49]} {[%emt 00:00:05]} 19. Kf1 {[%clk
00:46:18]} {[%emt 00:00:08]} Rhe8 {[%emt 00:08:58]} 20. b3 {[%clk 00:42:30]}
{[%emt 00:00:08]} cxb3 21. axb3 {[%emt 00:03:31]} Bg6 {[%clk 01:04:06]} {[%emt
00:11:23]} 22. Ke2 {[%clk 00:32:03]} {[%emt 00:10:58]} Kc6 {[%emt 00:10:07]} 23.
Ra4 {[%emt 00:07:33]} Kb7 {[%clk 00:47:44]} {[%emt 00:01:13]} 24. Rea1 {[%clk
00:29:46]} {[%emt 00:01:45]} Rec8 {[%clk 00:45:56]} {[%emt 00:02:18]} 25. c4
{[%clk 00:24:18]} {[%emt 00:05:58]} Be8 {[%clk 00:44:54]} {[%emt 00:01:32]} 26.
R4a2 {[%clk 00:24:32]} {[%emt 00:00:17]} dxc4 {[%clk 00:38:48]} {[%emt
00:06:37]} 27. bxc4 {[%clk 00:22:01]} {[%emt 00:11:03]} e5 28. Nb3 {[%emt
00:02:57]} Bf7 {[%clk 00:28:41]} {[%emt 00:00:36]} 29. Na5+ {[%emt 00:02:12]}
Ka7 {[%clk 00:24:25]} {[%emt 00:04:31]} 30. Rb1 {[%clk 00:19:34]} {[%emt
00:01:31]} Rab8 {[%clk 00:23:06]} {[%emt 00:01:49]} 31. Rab2 {[%clk 00:19:34]}
{[%emt 00:00:30]} Rxb2+ {[%emt 00:00:59]} 32. Rxb2 {[%clk 00:19:54]} {[%emt
00:00:03]} Rc7 {[%clk 00:22:27]} {[%emt 00:00:46]} 33. Kd3 {[%clk 00:16:40]}
{[%emt 00:03:44]} Bb6 {[%clk 00:21:42]} {[%emt 00:01:15]} 34. Bf2 {[%clk
00:16:52]} {[%emt 00:00:18]} Bxf2 {[%clk 00:21:48]} {[%emt 00:00:23]} 35. Rxf2
{[%clk 00:17:17]} {[%emt 00:00:04]} Kb6 {[%clk 00:21:27]} {[%emt 00:00:52]} 36.
Nb3 Bxc4+ {[%clk 00:21:01]} 37. Kc3 {[%clk 00:13:48]} {[%emt 00:00:03]} Bb5+
{[%clk 00:20:18]} {[%emt 00:01:13]} 38. Kb2 {[%clk 00:13:33]} {[%emt 00:00:45]}
a5 {[%clk 00:19:36]} {[%emt 00:01:12]} 39. Nd2 {[%clk 00:10:37]} {[%emt
00:03:26]} Bd3 {[%clk 00:13:38]} {[%emt 00:06:27]} 40. Nb1 {[%clk 00:11:05]}
{[%emt 00:00:32]} Bxb1 {[%clk 00:13:42]} {[%emt 00:00:56]} 41. Kxb1 {[%clk
00:11:29]} {[%emt 00:00:06]} a4 {[%clk 00:13:04]} {[%emt 00:01:08]} 42. Ra2
{[%clk 00:09:11]} {[%emt 00:02:48]} Ka5 {[%clk 00:13:11]} {[%emt 00:00:24]} 43.
Rb2 {[%clk 00:02:19]} {[%emt 00:07:21]} h5 {[%clk 00:10:42]} {[%emt 00:02:59]}
44. Rd2 {[%clk 00:01:51]} {[%emt 00:00:58]} h4 {[%clk 00:04:36]} {[%emt
00:06:36]} 45. h3 {[%clk 00:02:06]} {[%emt 00:00:14]} a3 {[%clk 00:03:40]}
{[%emt 00:01:26]} 46. Ka2 {[%clk 00:01:25]} {[%emt 00:01:12]} Kb4 {[%clk
00:03:59]} {[%emt 00:00:11]} 47. Re2 {[%clk 00:01:13]} {[%emt 00:00:42]} Rc1
{[%clk 00:04:05]} {[%emt 00:00:24]} 48. Rf2 {[%clk 00:01:03]} {[%emt 00:00:40]}
Kc3 {[%clk 00:04:27]} {[%emt 00:00:08]} 0-1

[Event "Mistrovství Čech mládeže 2023 - HD14"]
[Site "Harrachov, Czech Republic"]
[Date "2023.10.24"]
[Round "5.6"]
[White "Krautschneider, Daniel Jan"]
[Black "Jakubše, Tamae Severína"]
[Result "0-1"]
[TimeControl "90m + 30s"]
[WhiteElo "1669"]
[BlackElo "1627"]

1. d4 {[%clk 01:30:42]} {[%emt 00:00:17]} Nf6 {[%clk 01:30:52]} {[%emt
00:00:09]} 2. Nf3 {[%clk 01:31:05]} {[%emt 00:00:06]} g6 {[%clk 01:31:13]}
{[%emt 00:00:10]} 3. c4 {[%clk 01:31:30]} {[%emt 00:00:05]} Bg7 {[%clk
01:31:37]} {[%emt 00:00:06]} 4. Nc3 {[%clk 01:31:54]} {[%emt 00:00:07]} d5
{[%clk 01:32:02]} {[%emt 00:00:05]} 5. Bg5 {[%clk 01:32:19]} {[%emt 00:00:05]}
O-O {[%clk 01:32:05]} {[%emt 00:00:27]} 6. Bxf6 {[%clk 01:32:21]} {[%emt
00:00:28]} Bxf6 {[%clk 01:32:26]} {[%emt 00:00:09]} 7. cxd5 {[%clk 01:32:47]}
{[%emt 00:00:04]} c5 {[%clk 01:30:03]} {[%emt 00:02:53]} 8. dxc5 {[%clk
01:31:43]} {[%emt 00:01:35]} Qa5 {[%clk 01:29:52]} {[%emt 00:00:40]} 9. Qd2
{[%clk 01:30:01]} {[%emt 00:02:12]} Nd7 {[%clk 01:25:28]} {[%emt 00:04:54]} 10.
e3 {[%clk 01:13:11]} {[%emt 00:17:20]} Nxc5 {[%clk 01:17:55]} {[%emt 00:08:02]}
11. h3 {[%clk 01:09:59]} {[%emt 00:03:42]} Nb3 {[%clk 01:15:04]} {[%emt
00:03:21]} 12. axb3 {[%clk 01:06:58]} {[%emt 00:03:31]} Qxa1+ {[%clk 01:15:25]}
{[%emt 00:00:09]} 13. Nd1 {[%clk 01:07:21]} {[%emt 00:00:08]} Bf5 {[%clk
01:13:35]} {[%emt 00:02:19]} 14. Be2 {[%clk 01:05:14]} {[%emt 00:02:37]} Rac8
{[%clk 01:11:47]} {[%emt 00:02:18]} 15. Bc4 {[%clk 01:01:16]} {[%emt 00:04:29]}
a6 {[%clk 00:54:51]} {[%emt 00:17:25]} 16. O-O {[%clk 00:58:11]} {[%emt
00:03:34]} b5 {[%clk 00:54:12]} {[%emt 00:01:09]} 17. Bd3 {[%clk 00:55:19]}
{[%emt 00:03:22]} Bxd3 {[%clk 00:54:03]} {[%emt 00:00:39]} 18. Qxd3 {[%clk
00:55:44]} {[%emt 00:00:05]} Bxb2 {[%clk 00:51:36]} {[%emt 00:02:57]} 19. Nh2
{[%clk 00:53:57]} {[%emt 00:02:17]} Bg7 {[%clk 00:50:10]} {[%emt 00:01:56]} 20.
f4 {[%clk 00:53:13]} {[%emt 00:01:14]} Rc7 {[%clk 00:47:31]} {[%emt 00:03:09]}
21. f5 {[%clk 00:51:00]} {[%emt 00:02:43]} Rfc8 {[%clk 00:46:44]} {[%emt
00:01:18]} 22. fxg6 {[%clk 00:49:57]} {[%emt 00:01:33]} hxg6 {[%clk 00:46:57]}
{[%emt 00:00:16]} 23. Nf3 {[%clk 00:47:32]} {[%emt 00:02:55]} Rc2 {[%clk
00:45:03]} {[%emt 00:02:24]} 24. Nh4 {[%clk 00:47:11]} {[%emt 00:00:52]} Qe5
{[%clk 00:41:44]} {[%emt 00:03:47]} 25. Nxg6 {[%clk 00:35:41]} {[%emt
00:12:01]} fxg6 {[%clk 00:38:38]} {[%emt 00:03:36]} 26. Qxg6 {[%clk 00:35:23]}
{[%emt 00:00:48]} Qxd5 {[%clk 00:38:03]} {[%emt 00:01:06]} 27. Rf4 {[%clk
00:30:44]} {[%emt 00:05:08]} Qxd1+ {[%clk 00:28:08]} {[%emt 00:10:26]} 28. Kh2
{[%emt 00:01:09]} Qd5 {[%emt 00:00:24]} 29. e4 {[%clk 00:28:50]} {[%emt
00:00:51]} Qxb3 {[%clk 00:27:48]} {[%emt 00:00:50]} 30. e5 {[%clk 00:25:32]}
{[%emt 00:03:48]} Rxg2+ {[%clk 00:24:31]} {[%emt 00:03:47]} 31. Kxg2 {[%clk
00:24:47]} {[%emt 00:01:15]} Rc2+ {[%clk 00:24:40]} {[%emt 00:00:21]} 0-1

[Event "Mistrovství Čech mládeže 2023 - HD14"]
[Site "Harrachov, Czech Republic"]
[Date "2023.10.24"]
[Round "5.7"]
[White "Kammová, Kateřina"]
[Black "Bělaška, Václav"]
[Result "1/2-1/2"]
[TimeControl "90m + 30s"]
[WhiteElo "1543"]
[BlackElo "1666"]

1. e4 {[%clk 01:30:47]} {[%emt 00:00:12]} b6 {[%clk 01:30:22]} {[%emt
00:00:39]} 2. d4 {[%clk 01:27:54]} {[%emt 00:03:23]} Bb7 {[%clk 01:30:46]}
{[%emt 00:00:06]} 3. Bd3 {[%clk 01:26:48]} {[%emt 00:01:36]} e6 {[%clk
01:30:56]} {[%emt 00:00:20]} 4. Ne2 {[%clk 01:25:45]} {[%emt 00:01:32]} Nf6
{[%clk 01:30:11]} {[%emt 00:01:16]} 5. Nd2 {[%clk 01:23:09]} {[%emt 00:03:06]}
d5 {[%clk 01:28:50]} {[%emt 00:01:51]} 6. e5 {[%clk 01:17:56]} {[%emt
00:05:42]} Nfd7 {[%clk 01:28:09]} {[%emt 00:01:11]} 7. O-O {[%clk 01:17:00]}
{[%emt 00:01:26]} c5 {[%clk 01:28:04]} {[%emt 00:00:35]} 8. c3 {[%clk
01:16:34]} {[%emt 00:00:56]} Nc6 {[%clk 01:27:12]} {[%emt 00:01:23]} 9. a3
{[%clk 01:11:04]} {[%emt 00:05:59]} h5 {[%clk 01:20:28]} {[%emt 00:07:14]} 10.
f4 {[%clk 01:02:29]} g6 {[%clk 01:20:17]} {[%emt 00:09:46]} 11. Nf3 {[%clk
01:01:24]} Bh6 {[%clk 01:19:33]} {[%emt 00:02:48]} 12. Bc2 {[%emt 00:07:57]}
Ba6 13. Rf2 {[%clk 00:53:53]} {[%emt 00:01:33]} Qc7 {[%emt 00:07:45]} 14. Rb1
{[%emt 00:05:06]} cxd4 {[%clk 01:13:52]} {[%emt 00:01:31]} 15. cxd4 {[%clk
00:45:11]} {[%emt 00:01:33]} Rc8 {[%clk 01:13:03]} {[%emt 00:01:20]} 16. Ng3
{[%emt 00:24:15]} Qd8 {[%clk 00:52:03]} {[%emt 00:01:17]} 17. b4 {[%emt
00:05:58]} Bc4 {[%emt 00:09:14]} 18. Nd2 {[%clk 00:26:23]} {[%emt 00:01:28]} b5
19. Nxc4 {[%emt 00:03:50]} bxc4 {[%emt 00:01:06]} 20. Ne2 {[%emt 00:02:09]} Qb6
{[%emt 00:04:43]} 21. h3 {[%emt 00:04:35]} h4 {[%emt 00:04:41]} 22. Ba4 {[%clk
00:17:04]} {[%emt 00:00:21]} Ne7 {[%clk 00:40:09]} {[%emt 00:04:24]} 23. Rf3
{[%emt 00:04:17]} Nf5 {[%clk 00:39:33]} {[%emt 00:00:20]} 24. Be3 {[%clk
00:13:34]} {[%emt 00:00:59]} Bf8 {[%clk 00:39:10]} {[%emt 00:00:54]} 25. Bf2
{[%clk 00:13:18]} {[%emt 00:00:46]} Be7 {[%clk 00:39:27]} {[%emt 00:00:13]} 26.
Qc2 {[%clk 00:12:03]} {[%emt 00:01:44]} Rb8 {[%clk 00:38:22]} {[%emt 00:01:36]}
27. Qd1 {[%clk 00:09:35]} {[%emt 00:02:57]} Kd8 {[%clk 00:32:13]} {[%emt
00:06:40]} 1/2-1/2

[Event "Mistrovství Čech mládeže 2023 - HD14"]
[Site "Harrachov, Czech Republic"]
[Date "2023.10.24"]
[Round "5.8"]
[White "Švadlenka, Michal"]
[Black "Pogorelskiy, Boris"]
[Result "1-0"]
[TimeControl "90m + 30s"]
[WhiteElo "1651"]
[BlackElo "1541"]

1. e4 {[%clk 01:30:58]} c5 {[%clk 01:30:53]} {[%emt 00:00:08]} 2. Nf3 {[%clk
01:31:25]} {[%emt 00:00:03]} e6 {[%clk 01:31:11]} {[%emt 00:00:13]} 3. d4
{[%clk 01:31:51]} {[%emt 00:00:04]} cxd4 {[%clk 01:31:38]} {[%emt 00:00:02]} 4.
Nxd4 {[%clk 01:32:17]} {[%emt 00:00:05]} a6 {[%clk 01:32:04]} {[%emt 00:00:03]}
5. Nc3 {[%clk 01:32:40]} {[%emt 00:00:07]} Qc7 {[%clk 01:32:28]} {[%emt
00:00:06]} 6. Qf3 {[%clk 01:31:55]} {[%emt 00:01:16]} Be7 {[%clk 01:31:58]}
{[%emt 00:01:00]} 7. Be3 {[%clk 01:31:44]} {[%emt 00:00:41]} b5 {[%clk
01:30:51]} {[%emt 00:01:38]} 8. O-O-O {[%clk 01:29:56]} {[%emt 00:02:18]} Bb7
{[%clk 01:30:45]} {[%emt 00:00:36]} 9. g4 {[%clk 01:27:41]} {[%emt 00:02:44]}
Nc6 {[%clk 01:30:22]} {[%emt 00:00:54]} 10. Qg2 {[%clk 01:15:07]} {[%emt
00:13:04]} Rc8 {[%clk 01:29:58]} {[%emt 00:00:54]} 11. Bd3 {[%clk 01:14:37]}
{[%emt 00:00:59]} Nb4 {[%clk 01:26:30]} {[%emt 00:03:58]} 12. f4 {[%clk
01:12:04]} {[%emt 00:03:03]} Nxd3+ {[%clk 01:26:15]} {[%emt 00:00:45]} 13. Rxd3
{[%clk 01:12:21]} {[%emt 00:00:13]} Nf6 {[%clk 01:24:23]} {[%emt 00:02:22]} 14.
g5 {[%clk 01:10:57]} {[%emt 00:01:54]} Nxe4 {[%clk 01:23:52]} {[%emt 00:01:01]}
15. Nxe4 {[%clk 01:10:07]} {[%emt 00:01:20]} e5 {[%clk 01:24:02]} {[%emt
00:00:20]} 16. Rc3 {[%clk 01:07:43]} {[%emt 00:02:54]} Qxc3 {[%clk 01:20:56]}
{[%emt 00:03:36]} 17. bxc3 {[%clk 01:07:36]} {[%emt 00:00:37]} Rxc3 {[%clk
01:21:09]} {[%emt 00:00:17]} 18. Nf5 {[%clk 01:06:39]} {[%emt 00:01:27]} 1-0

[Event "Mistrovství Čech mládeže 2023 - HD14"]
[Site "Harrachov, Czech Republic"]
[Date "2023.10.24"]
[Round "5.9"]
[White "Mikulka, Martin Michael"]
[Black "Petrášek, Jiří"]
[Result "1-0"]
[TimeControl "90m + 30s"]
[WhiteElo "1826"]
[BlackElo "1423"]

1. e4 {[%clk 01:30:57]} {[%emt 00:00:03]} e5 {[%clk 01:30:45]} {[%emt
00:00:15]} 2. Nf3 {[%clk 01:31:22]} {[%emt 00:00:04]} Nc6 {[%clk 01:31:02]}
{[%emt 00:00:13]} 3. Bc4 {[%clk 01:31:47]} {[%emt 00:00:05]} Bc5 {[%clk
01:31:20]} {[%emt 00:00:13]} 4. b4 {[%clk 01:32:08]} {[%emt 00:00:10]} Bxb4
{[%clk 01:30:19]} {[%emt 00:01:30]} 5. c3 {[%clk 01:32:32]} {[%emt 00:00:06]}
Ba5 {[%clk 01:29:59]} {[%emt 00:00:50]} 6. d4 {[%clk 01:32:53]} {[%emt
00:00:09]} exd4 {[%clk 01:19:01]} {[%emt 00:11:28]} 7. Qb3 {[%clk 01:32:13]}
{[%emt 00:01:10]} Qf6 {[%clk 01:15:39]} {[%emt 00:03:52]} 8. O-O {[%clk
01:30:20]} {[%emt 00:02:22]} dxc3 {[%clk 01:07:15]} {[%emt 00:08:54]} 9. e5
{[%clk 01:19:21]} {[%emt 00:11:29]} Qg6 {[%clk 01:02:44]} {[%emt 00:05:01]} 10.
Nxc3 {[%clk 01:17:32]} {[%emt 00:02:20]} Bxc3 {[%clk 01:01:37]} {[%emt
00:01:36]} 11. Qxc3 {[%clk 01:17:51]} {[%emt 00:00:11]} Nge7 {[%clk 00:54:40]}
{[%emt 00:07:25]} 12. Ng5 {[%clk 01:05:35]} {[%emt 00:12:47]} Nd8 {[%clk
00:44:43]} {[%emt 00:10:27]} 13. f4 {[%clk 00:56:54]} {[%emt 00:09:11]} h6
{[%clk 00:35:23]} {[%emt 00:09:50]} 14. Nf3 {[%clk 00:53:33]} {[%emt 00:03:51]}
O-O {[%clk 00:29:57]} {[%emt 00:05:56]} 15. Re1 {[%clk 00:41:30]} {[%emt
00:12:33]} Qg4 {[%clk 00:22:26]} {[%emt 00:08:01]} 16. Nd4 {[%clk 00:29:14]}
{[%emt 00:12:46]} Nec6 {[%clk 00:16:02]} {[%emt 00:06:54]} 17. Ba3 {[%clk
00:24:38]} {[%emt 00:05:06]} Re8 {[%clk 00:14:22]} {[%emt 00:02:10]} 18. Nb5
{[%clk 00:24:17]} {[%emt 00:00:52]} Ne6 {[%clk 00:12:56]} {[%emt 00:01:56]} 19.
Bxe6 {[%clk 00:24:35]} {[%emt 00:00:11]} Rxe6 {[%clk 00:13:12]} {[%emt
00:00:13]} 20. Nxc7 {[%clk 00:24:19]} {[%emt 00:00:47]} Rg6 {[%clk 00:13:19]}
{[%emt 00:00:22]} 21. g3 {[%clk 00:23:40]} {[%emt 00:01:08]} Rb8 {[%clk
00:12:05]} {[%emt 00:01:45]} 22. Nd5 {[%clk 00:19:11]} {[%emt 00:04:58]} b6
{[%clk 00:08:33]} {[%emt 00:04:04]} 23. Bd6 {[%clk 00:18:28]} {[%emt 00:01:13]}
Rb7 {[%clk 00:08:24]} {[%emt 00:00:39]} 24. Qd2 {[%clk 00:17:12]} {[%emt
00:01:46]} b5 {[%clk 00:06:33]} {[%emt 00:02:21]} 25. Rac1 {[%clk 00:15:56]}
{[%emt 00:01:45]} Kh8 {[%clk 00:06:02]} {[%emt 00:01:01]} 26. Ne7 {[%clk
00:13:06]} {[%emt 00:03:20]} Nxe7 {[%clk 00:05:48]} {[%emt 00:00:44]} 27. Bxe7
{[%clk 00:13:23]} {[%emt 00:00:12]} Rc6 {[%clk 00:05:58]} {[%emt 00:00:20]} 28.
e6 {[%clk 00:12:43]} {[%emt 00:01:10]} f6 {[%clk 00:04:50]} {[%emt 00:01:38]}
29. Bxf6 {[%clk 00:09:06]} {[%emt 00:04:07]} gxf6 {[%clk 00:03:54]} {[%emt
00:01:26]} 30. e7 {[%clk 00:09:10]} {[%emt 00:00:26]} 1-0

[Event "Mistrovství Čech mládeže 2023 - HD14"]
[Site "Harrachov, Czech Republic"]
[Date "2023.10.24"]
[Round "5.10"]
[White "Holeš, Vojta"]
[Black "Chernyy, Andrey"]
[Result "0-1"]
[TimeControl "90m + 30s"]
[WhiteElo "1440"]
[BlackElo "1655"]

1. e4 {[%clk 01:30:59]} {[%emt 00:00:01]} e5 {[%clk 01:30:55]} {[%emt
00:00:05]} 2. Nf3 {[%clk 01:31:25]} {[%emt 00:00:04]} Nc6 {[%clk 01:31:21]}
{[%emt 00:00:04]} 3. d4 {[%clk 01:31:50]} {[%emt 00:00:04]} exd4 {[%clk
01:31:40]} {[%emt 00:00:11]} 4. Bc4 {[%clk 01:32:16]} {[%emt 00:00:05]} Nf6
{[%clk 01:31:56]} {[%emt 00:00:14]} 5. O-O {[%clk 01:32:38]} {[%emt 00:00:08]}
Nxe4 {[%clk 01:32:19]} {[%emt 00:00:07]} 6. Re1 {[%clk 01:33:04]} {[%emt
00:00:05]} d5 {[%clk 01:32:43]} {[%emt 00:00:05]} 7. Bxd5 {[%clk 01:33:28]}
{[%emt 00:00:06]} Qxd5 {[%clk 01:33:07]} {[%emt 00:00:06]} 8. Nc3 {[%clk
01:33:53]} {[%emt 00:00:05]} Qa5 {[%clk 01:33:30]} {[%emt 00:00:07]} 9. Rxe4+
{[%clk 01:32:46]} {[%emt 00:01:37]} Be6 {[%clk 01:32:06]} {[%emt 00:01:54]} 10.
Nxd4 {[%clk 01:32:16]} {[%emt 00:01:01]} O-O-O {[%clk 01:27:29]} {[%emt
00:05:07]} 11. Nce2 {[%clk 01:25:37]} {[%emt 00:07:09]} Bf5 {[%clk 01:18:52]}
{[%emt 00:09:07]} 12. Bd2 {[%clk 01:20:10]} {[%emt 00:05:56]} Qd5 {[%clk
01:00:11]} {[%emt 00:19:10]} 13. Nxc6 {[%clk 01:17:51]} {[%emt 00:02:51]} Qxc6
{[%clk 01:00:27]} {[%emt 00:00:14]} 14. Rd4 {[%clk 01:16:49]} {[%emt 00:01:32]}
Bc5 {[%clk 00:54:08]} {[%emt 00:06:48]} 15. Rxd8+ {[%clk 01:12:17]} {[%emt
00:05:02]} Rxd8 {[%clk 00:54:30]} {[%emt 00:00:08]} 16. Nc3 {[%clk 01:11:14]}
{[%emt 00:01:33]} Qb6 {[%clk 00:44:50]} {[%emt 00:10:10]} 17. Qf3 {[%clk
01:01:28]} {[%emt 00:10:17]} Bxf2+ {[%clk 00:36:39]} {[%emt 00:08:41]} 18. Kf1
{[%clk 01:00:06]} {[%emt 00:01:52]} Bxc2 {[%clk 00:32:28]} {[%emt 00:04:41]} 19.
Ne2 {[%clk 00:43:38]} {[%emt 00:16:57]} Rxd2 {[%clk 00:26:48]} {[%emt
00:06:10]} 0-1